bitfinex-derivatives/quotes_ETHF0:USTF0_20251211
["timestamp","ask_amount","ask_price","bid_price","bid_amount"]
[1765480805656,1.3899,3204.7,3204.6,0.15601]
[1765480805957,1.3899,3203.8,3203.7,0.15605]
[1765480806554,1.3899,3203.2,3203.1,0.0040444]
[1765480806751,1.3899,3203.2,3203.1,0.1601244]
[1765480807665,0.42558223,3203.5,3203.4,0.83867]
[1765480807962,1.81548223,3203.5,3203.4,0.15607]
[1765480811257,1.3899,3203.2,3203.1,0.0040444]
[1765480812362,1.3899,3202.8,3202.7,0.1561]
[1765480813265,1.39259405,3202.8,3202.7,0.15948695]
[1765480813656,1.39259405,3202.8,3202.7,0.00338695]
[1765480815766,1.39259405,3202.8,3202.7,0.15948695]
[1765480816263,1.4333,3202.2,3202.1,0.15613]
[1765480817263,1.4333,3202.2,3202.1,0.15873063]
[1765480817462,0.00269405,3202.8,3202.6,0.1561]
[1765480817666,1.43599405,3202.8,3202.7,0.1561]
[1765480819160,1.43599405,3202.8,3202.7,1.59]
[1765480819161,0.00269405,3202.8,3202.7,1.59]
[1765480819864,1.43629405,3202.8,3202.7,0.1561]
[1765480820771,0.00269405,3202.8,3202.7,1.5517]
[1765480821070,1.43629405,3202.8,3202.7,0.1561]
[1765480821269,0.00269405,3202.8,3202.7,1.5517]
[1765480823666,0.00269405,3202.8,3202.7,7.5517]
[1765480827385,0.00468223,3203.5,3203.4,1.55167]
[1765480828176,0.00695222,3203.5,3203.4,1.55167]
[1765480834082,0.4105,3204.5,3203.9,1.3956]
[1765480834289,1.4336,3204.4,3204.3,0.15602]
[1765480834589,0.7179,3204.4,3204.3,1.55162]
[1765480835088,0.72156992,3204.4,3204.3,1.55162]
[1765480835286,1.43726992,3204.4,3204.3,0.84272]
[1765480836785,0.00366992,3204.4,3204.3,1.55162]
[1765480836991,0.72156992,3204.4,3204.3,1.55162]
[1765480837287,1.43726992,3204.4,3204.3,0.15602]
[1765480837580,1.43726992,3204.4,3204.0,0.00468223]
[1765480837581,1.4336,3204.1,3204.0,0.00468223]
[1765480837789,0.4324,3204.0,3202.8,3.86488651]
[1765480837988,0.4324,3204.0,3203.7,0.15605]
[1765480837989,1.4336,3203.8,3203.7,0.15605]
[1765480838496,1.4336,3202.2,3202.1,0.00260063]
[1765480839295,0.7179,3201.4,3199.9,5.56326896]
[1765480840192,0.7179,3201.4,3199.5,3.01146971]
[1765480840384,0.72115449,3201.4,3200.5,0.21909535]
[1765480840581,1.43685449,3201.4,3201.3,0.15617]
[1765480841094,1.43685449,3201.4,3200.5,0.15910535]
[1765480841390,1.4336,3200.6,3200.5,0.15910535]
[1765480842287,0.00468223,3200.9,3200.8,0.15619]
[1765480842488,0.72258223,3200.9,3200.8,0.84289]
[1765480842887,0.72258223,3200.9,3200.8,0.15619]
[1765480843088,1.43828223,3200.9,3200.8,0.15619]
[1765480844583,1.4336,3200.6,3200.5,0.00289535]
[1765480844890,1.4336,3200.2,3200.1,0.15622]
[1765480845694,1.4336,3200.2,3200.1,0.15860172]
[1765480846284,1.4336,3200.2,3198.5,0.4091]
[1765480846489,1.4336,3199.3,3199.2,0.15627]
[1765480846694,0.4324,3199.5,3199.2,0.84297]
[1765480846898,0.7179,3199.3,3199.2,0.15627]
[1765480847096,0.7179,3199.3,3199.2,0.84297]
[1765480847299,0.7179,3199.3,3199.2,0.84583152]
[1765480847697,1.4336,3199.3,3199.2,0.15913152]
[1765480848997,0.7179,3199.3,3199.2,0.84583152]
[1765480849590,1.4748,3199.3,3199.2,0.15913152]
[1765480850099,1.8983,3200.0,3199.9,0.15624]
[1765480851299,1.8983,3200.0,3199.2,0.00286152]
[1765480851501,4.5123,3200.0,3199.2,0.00286152]
[1765480852000,0.709,3199.3,3199.2,0.88963152]
[1765480852994,0.709,3199.3,3199.2,1.57653152]
[1765480853199,1.8915,3199.5,3199.4,0.15626]
[1765480853595,1.8983,3200.0,3199.9,0.15624]
[1765480854601,1.4659,3199.3,3199.2,0.00286152]
[1765480855599,1.4659,3199.3,3199.2,0.15913152]
[1765480860102,1.1346,3199.5,3199.4,0.15626]
[1765480860302,1.1346,3199.5,3199.4,0.88676]
[1765480860607,1.8983,3200.0,3199.9,0.15624]
[1765480860812,1.4659,3200.2,3200.1,0.15623]
[1765480861203,0.709,3199.3,3199.2,0.73336152]
[1765480861614,1.4659,3199.8,3199.7,0.15625]
[1765480862306,1.4659,3199.3,3199.2,0.00286152]
[1765480862506,1.8915,3198.0,3196.5,0.4417]
[1765480862700,1.4659,3197.9,3197.8,0.15634]
[1765480863105,1.4659,3198.1,3198.0,0.15633]
[1765480863510,1.46949008,3198.1,3198.0,0.15898965]
[1765480863704,0.709,3197.4,3197.3,0.15636]
[1765480863900,0.709,3197.4,3197.3,0.88686]
[1765480864104,1.4659,3197.8,3197.7,0.15634]
[1765480864307,0.00359008,3198.1,3197.9,0.7305]
[1765480864506,0.709,3198.0,3197.9,0.88683]
[1765480864704,0.00359008,3198.1,3198.0,0.15633]
[1765480865012,0.71259008,3198.1,3198.0,0.88683]
[1765480865203,1.46949008,3198.1,3198.0,0.15633]
[1765480865701,1.46949008,3198.1,3197.9,0.00202357]
[1765480865902,0.709,3197.3,3196.5,0.4417]
[1765480866110,1.4659,3197.3,3197.2,0.15637]
[1765480866905,1.4659,3197.0,3196.9,0.15638]
[1765480867509,1.4659,3197.0,3195.5,0.4417]
[1765480867708,0.709,3197.1,3197.0,0.15638]
[1765480868002,2.34201191,3197.8,3197.7,0.15634]
[1765480868003,1.4659,3197.8,3197.7,0.15634]
[1765480868207,2.38371242,3197.8,3197.7,0.15634]
[1765480869812,1.4659,3196.1,3196.0,0.15643]
[1765480870021,4.72572433,3196.1,3194.4,0.4417]
[1765480870215,0.91781242,3196.0,3195.9,0.15643]
[1765480870410,1.62681242,3196.0,3195.9,0.15643]
[1765480870911,2.38371242,3196.0,3195.9,0.15643]
[1765480871110,0.00468984,3196.4,3196.3,0.88691]
[1765480871311,0.92172009,3196.4,3196.3,0.88691]
[1765480871512,0.92172009,3196.4,3196.3,0.15641]
[1765480871513,2.38762009,3196.4,3196.3,0.15641]
[1765480871822,1.63072009,3196.4,3196.3,0.15641]
[1765480872211,2.38762009,3196.4,3196.3,0.15641]
[1765480872811,1.4659,3197.3,3197.2,0.15637]
[1765480873011,2.38212371,3197.3,3197.2,0.15637]
[1765480873212,1.4659,3196.7,3196.6,0.1564]
[1765480873512,2.38212371,3196.7,3196.6,0.1564]
[1765480874916,1.4659,3196.4,3196.3,0.00468984]
[1765480875115,1.8915,3195.6,3195.5,0.15645]
[1765480875414,2.81075653,3195.6,3195.5,0.15645]
[1765480875612,2.81075653,3195.6,3194.5,3.30244649]
[1765480875811,0.91622371,3195.5,3193.8,2.78371191]
[1765480876015,1.4659,3195.3,3195.2,0.15646]
[1765480876212,1.62522371,3195.3,3195.2,0.15646]
[1765480876618,2.38212371,3195.3,3195.2,0.15646]
[1765480876914,1.62522371,3195.3,3195.2,0.15646]
[1765480877107,2.38212371,3195.3,3195.2,0.15646]
[1765480877308,0.00772266,3195.6,3195.5,1.57385]
[1765480877517,0.92190451,3195.6,3195.5,1.57385]
[1765480878121,0.59892425,3195.6,3195.5,1.57385]
[1765480878323,0.709,3196.3,3196.2,0.15641]
[1765480878820,1.4659,3196.3,3196.2,0.15641]
[1765480879015,1.4659,3196.3,3196.2,0.15944282]
[1765480879218,1.4019,3196.0,3195.9,0.00468984]
[1765480879816,0.6966,3196.0,3195.9,0.00468984]
[1765480880018,1.4212,3196.0,3195.9,0.16111984]
[1765480881618,0.6966,3196.0,3195.9,0.16111984]
[1765480881822,0.4499,3196.2,3195.9,0.00468984]
[1765480882323,0.71887828,3196.3,3196.2,0.15642]
[1765480882522,0.00257828,3196.3,3196.2,0.15642]
[1765480882917,1.44347828,3196.3,3196.2,0.15642]
[1765480884722,0.71887828,3196.3,3196.2,0.15642]
[1765480885123,0.00257828,3196.3,3196.2,0.84122]
[1765480885422,1.44347828,3196.3,3196.2,0.15642]
[1765480885621,0.71887828,3196.3,3196.2,0.15642]
[1765480886210,0.00257828,3196.3,3196.2,1.54442]
[1765480886618,0.00257828,3196.3,3196.2,0.84122]
[1765480886818,0.00257828,3196.3,3196.2,1.54442]
[1765480887314,0.00257828,3196.3,3196.2,1.98592]
[1765480887514,2.37976444,3197.1,3197.0,0.15638]
[1765480887714,1.66346444,3197.1,3196.5,0.1564]
[1765480887923,1.1284,3196.8,3196.7,0.15639]
[1765480888226,1.853,3196.8,3196.7,0.15639]
[1765480888423,1.66815428,3197.1,3197.0,0.15638]
[1765480888614,2.38850731,3197.1,3197.0,0.15638]
[1765480888813,3.11310731,3197.1,3197.0,0.15638]
[1765480889217,1.44964287,3197.1,3197.0,0.15638]
[1765480890022,1.63203492,3197.1,3197.0,0.84118]
[1765480890221,0.91573492,3197.1,3197.0,1.54438]
[1765480892125,2.35663492,3197.1,3197.0,0.15638]
[1765480893423,0.91573492,3197.1,3197.0,1.54438]
[1765480893822,0.35746094,3197.1,3197.0,1.54438]
[1765480894016,1.4409,3197.6,3197.5,0.15635]
[1765480894427,1.4409,3197.4,3196.7,0.00257828]
[1765480894731,1.4409,3197.4,3197.3,0.15636]
[1765480894925,1.44379182,3197.4,3197.3,0.15636]
[1765480895226,1.44379182,3197.4,3196.7,0.00257828]
[1765480895227,1.4409,3196.8,3196.7,0.00257828]
[1765480895528,0.7163,3196.8,3196.7,0.68737828]
[1765480896616,0.7163,3196.8,3196.7,0.84376828]
[1765480897026,1.4409,3196.8,3196.7,0.15896828]
[1765480897441,1.44379182,3197.4,3197.3,0.15636]
[1765480904131,2.34201191,3198.3,3197.3,1.54436]
[1765480904339,4.59e-06,3201.6,3198.2,4.68402382]
[1765480904533,0.4121,3202.5,3202.0,0.15613]
[1765480904832,0.4121,3203.5,3201.5,2.34201191]
[1765480904833,0.4121,3203.5,3202.4,2.60146866]
[1765480905033,0.4121,3204.0,3203.9,0.15604]
[1765480905233,0.41607202,3204.0,3203.9,0.15980929]
[1765480905433,9.9777764,3204.0,3203.9,0.15980929]
[1765480905628,17.75037038,3204.0,3203.9,0.15980929]
[1765480905933,17.24329667,3204.0,3203.9,2.2361711]
[1765480906133,6.36898453,3204.0,3203.9,2.2361711]
[1765480906437,6.36898453,3204.0,3203.9,0.57348248]
[1765480906641,4.96537508,3204.0,3203.9,0.57348248]
[1765480906932,4.1237908,3204.0,3203.9,11.60887656]
[1765480907131,0.4121,3204.5,3204.4,0.15602]
[1765480907431,0.4121,3205.0,3204.9,0.15599]
[1765480907627,0.08155,3205.0,3204.9,0.56966319]
[1765480907829,0.4121,3205.5,3205.4,0.15597]
[1765480908025,0.4121,3205.5,3205.4,0.56964319]
[1765480908230,0.4150872,3205.5,3205.4,0.56964319]
[1765480908736,9.88578989,3205.5,3205.4,0.56964319]
[1765480908934,9.88578989,3205.5,3205.4,12.51157738]
[1765480908935,0.4150872,3205.5,3205.4,12.51157738]
[1765480909141,0.4150872,3205.5,3205.4,6.51157738]
[1765480909438,0.4150872,3205.5,3205.4,3.17111185]
[1765480909832,9.88578989,3205.5,3205.4,0.56964319]
[1765480911026,9.88578989,3205.5,3205.4,0.41367319]
[1765480912528,0.4150872,3205.5,3205.4,0.41367319]
[1765480912733,9.88578989,3205.5,3205.4,0.41367319]
[1765480913536,9.88578989,3205.5,3205.4,2.23474981]
[1765480914134,9.88578989,3205.5,3205.4,0.56964319]
[1765480915537,0.0751072,3205.5,3205.4,1.64965758]
[1765480915844,0.0751072,3205.5,3205.4,9.17111185]
[1765480916046,0.0751072,3205.5,3205.4,10.02620768]
[1765480916345,7.2e-06,3205.5,3205.4,11.10292562]
[1765480916536,7.2e-06,3205.5,3205.4,10.02620768]
[1765480916838,7.2e-06,3205.5,3205.4,13.453378]
[1765480917738,0.00468172,3205.8,3205.7,0.15595]
[1765480918042,0.00468172,3205.8,3205.7,0.56962319]
[1765480918239,0.00468172,3205.8,3205.7,1.37600203]
[1765480918441,0.00468172,3205.8,3205.7,7.37600203]
[1765480918645,0.00700517,3205.8,3205.7,8.23109786]
[1765480919135,0.00700517,3205.8,3205.7,7.42471902]
[1765480919445,0.00700517,3205.8,3205.7,8.23077258]
[1765480920237,0.00700517,3205.8,3205.7,2.23077258]
[1765480920437,9.47770786,3205.8,3205.7,1.37567675]
[1765480920833,9.47770786,3205.8,3205.7,0.56962319]
[1765480922142,9.47770786,3205.8,3205.7,0.15595]
[1765480922346,9.47770786,3205.8,3205.7,0.54940168]
[1765480923647,15.95220786,3205.8,3205.7,0.54940168]
[1765480923948,5.17e-06,3205.8,3205.7,0.54940168]
[1765480924146,1.58995517,3206.0,3205.9,0.15594]
[1765480924339,0.00449,3206.4,3206.3,0.15593]
[1765480924645,0.00449,3206.4,3206.3,1.3574921]
[1765480924841,9.47519269,3206.4,3206.3,0.54938168]
[1765480925040,0.00306485,3206.7,3206.6,0.15591]
[1765480925240,1.99036485,3206.7,3206.6,0.54936168]
[1765480925445,1.99256364,3206.7,3206.6,0.54936168]
[1765480925852,0.4121,3208.0,3207.9,0.15585]
[1765480926052,0.4121,3208.0,3207.9,0.54930168]
[1765480926343,1.9873,3208.8,3208.7,0.15581]
[1765480926548,1.67345,3208.8,3208.7,0.54926168]
[1765480926749,10.44226322,3208.8,3208.7,4.14060365]
[1765480927146,11.46064322,3208.8,3208.7,0.55296]
[1765480927345,11.46064322,3208.8,3208.7,2.48468108]
[1765480927546,11.46064322,3208.8,3208.7,1.62958525]
[1765480927851,11.46064322,3208.8,3208.7,1.62996719]
[1765480928252,11.46064322,3208.8,3208.7,1.36040971]
[1765480928446,11.46064322,3208.8,3208.7,0.55296]
[1765480929254,11.46064322,3208.8,3208.7,1.40805583]
[1765480929544,0.00264053,3208.8,3208.7,4.00952449]
[1765480929751,1.9873,3209.5,3209.4,0.15577]
[1765480929950,1.9873,3210.2,3210.1,0.15574]
[1765480930153,1.9873,3210.2,3210.1,2.48344285]
[1765480930350,11.45800269,3210.2,3210.1,1.40428751]
[1765480930855,11.46146764,3210.2,3210.1,3.56339183]
[1765480931056,11.46146764,3210.2,3210.1,1.40428751]
[1765480931554,11.46146764,3210.2,3210.1,3.5699585]
[1765480931749,11.46146764,3210.2,3210.1,3.02903584]
[1765480931950,11.46146764,3210.2,3210.1,1.40428751]
[1765480932254,11.46146764,3210.2,3209.4,2.16567099]
[1765480932456,11.46146764,3210.2,3209.8,0.15575]
[1765480932653,11.46146764,3210.2,3208.8,0.25262412]
[1765480932654,11.46146764,3210.2,3209.9,0.15575]
[1765480933055,11.46146764,3210.2,3209.7,2.16567099]
[1765480933254,11.46146764,3210.2,3209.9,2.16567099]
[1765480933656,11.46146764,3210.2,3209.9,2.79124262]
[1765480934153,11.46146764,3210.2,3209.8,2.79124262]
[1765480934357,8.43289219,3210.2,3210.0,2.79124262]
[1765480935054,8.43289219,3210.2,3209.7,3.90773967]
[1765480935055,8.43289219,3210.2,3210.1,0.15574]
[1765480935249,1.9873,3211.6,3209.8,3.90773967]
[1765480935453,1.9873,3211.6,3211.2,0.15569]
[1765480935650,3.89125526,3211.4,3211.1,2.19016111]
[1765480936155,3.89379829,3211.4,3211.1,0.00392874]
[1765480936358,3.89379829,3211.4,3210.6,0.15572]
[1765480937060,3.89379829,3211.4,3210.0,2.7433934]
[1765480937255,0.15568,3211.3,3210.0,2.7433934]
[1765480937559,1.9873,3210.4,3210.0,0.00760674]
[1765480938355,3.89379829,3211.4,3210.4,0.15573]
[1765480938558,3.89379829,3211.4,3210.5,0.15572]
[1765480938956,3.89379829,3211.4,3210.8,0.1557]
[1765480939356,3.89379829,3211.4,3210.1,2.73871919]
[1765480939558,3.89379829,3211.4,3210.3,0.15573]
[1765480939861,3.89379829,3211.4,3210.5,0.15572]
[1765480940062,3.5902036,3211.4,3210.6,0.15572]
[1765480940360,3.5902036,3211.4,3210.8,0.1557]
[1765480940862,3.5902036,3211.4,3210.9,0.1557]
[1765480941062,3.5902036,3211.4,3210.2,2.73871919]
[1765480941259,3.5902036,3211.4,3210.9,0.1557]
[1765480941456,3.5902036,3211.4,3210.4,2.73871919]
[1765480941457,3.58766057,3211.2,3211.1,0.15569]
[1765480944157,3.58766057,3211.2,3211.1,0.5381242]
[1765480944360,3.58766057,3211.2,3210.0,0.00760674]
[1765480944361,9.58766057,3211.2,3210.5,0.15572]
[1765480944563,3.58766057,3211.2,3210.6,0.15571]
[1765480944961,2.5182,3210.9,3210.6,0.15571]
[1765480945463,0.00254303,3211.4,3211.3,0.15568]
[1765480945959,3.5902036,3211.4,3211.3,0.15568]
[1765480946159,3.08432529,3211.4,3211.3,0.15568]
[1765480946367,8.1307,3211.9,3211.8,0.15566]
[1765480947165,8.1307,3212.2,3212.1,0.15564]
[1765480947362,8.13308333,3212.2,3212.1,0.15564]
[1765480947567,11.21740862,3212.2,3212.1,0.15564]
[1765480948456,3.08670862,3212.2,3212.1,8.73474]
[1765480948967,3.08670862,3212.2,3212.1,0.15564]
[1765480949269,3.08670862,3212.2,3212.1,4.49554]
[1765480949970,3.08670862,3212.2,3212.1,0.15564]
[1765480950268,8.1307,3211.8,3211.7,2.19097405]
[1765480950862,8.1307,3211.8,3211.7,2.34663405]
[1765480952058,4.1664,3211.8,3211.7,0.15566]
[1765480952261,4.1664,3212.1,3212.0,0.15565]
[1765480952460,0.00238333,3212.2,3212.1,4.49554]
[1765480952663,0.00238333,3212.2,3212.1,8.73474]
[1765480952864,11.21740862,3212.2,3212.1,0.15564]
[1765480953064,11.21740862,3212.2,3212.1,1.80448221]
[1765480953273,7.25310862,3212.2,3212.1,0.15564]
[1765480953774,11.21740862,3212.2,3212.1,0.15564]
[1765480954265,3.08670862,3212.2,3212.1,4.49554]
[1765480954471,11.21740862,3212.2,3212.1,0.15564]
[1765480955467,8.1307,3213.0,3212.9,0.15561]
[1765480955872,11.21502529,3213.0,3212.9,0.15561]
[1765480956174,10.7093621,3213.0,3212.9,0.15561]
[1765480956668,11.3385884,3213.0,3212.9,0.15804729]
[1765480956872,4.1664,3212.7,3212.6,2.20999329]
[1765480957070,4.1664,3212.7,3212.4,2.73871919]
[1765480957781,7.25375159,3213.0,3212.9,0.15561]
[1765480957977,11.72575159,3213.0,3212.9,0.15561]
[1765480958272,4.1664,3212.7,3212.6,2.36396503]
[1765480958467,13.73625159,3213.0,3212.9,1e-05]
[1765480958667,5.60555159,3213.0,3212.9,1e-05]
[1765480958869,8.1307,3212.5,3212.4,4.9e-05]
[1765480959272,14.1307,3212.5,3212.4,0.155679]
[1765480959580,8.1307,3212.5,3212.4,0.155679]
[1765480960073,7.25072529,3212.5,3212.4,0.155679]
[1765480960279,3.08432529,3212.5,3212.4,8.734779]
[1765480960469,3.08432529,3212.5,3212.4,4.495579]
[1765480960670,11.21502529,3212.5,3212.4,0.155679]
[1765480961378,3.08432529,3212.5,3212.4,4.9e-05]
[1765480961675,3.08432529,3212.5,3212.4,0.155679]
[1765480962376,3.08432529,3212.5,3212.4,10.94312555]
[1765480962677,3.08432529,3212.5,3212.4,2.36402555]
[1765480962877,3.08432529,3212.5,3212.4,10.94312555]
[1765480963073,3.08432529,3212.5,3212.4,8.734779]
[1765480963280,3.08432529,3212.5,3212.4,4.495579]
[1765480963575,2.37637109,3212.5,3212.4,0.155679]
[1765480964281,2.37637109,3212.5,3212.4,8.734779]
[1765480964676,2.37637109,3212.5,3211.6,17.89029339]
[1765480964677,0.15566,3211.9,3211.4,4.979e-05]
[1765480964877,2.58769339,3211.7,3210.9,1.10618988]
[1765480965076,0.15566,3211.9,3210.9,1.10618988]
[1765480965281,2.44312536,3211.8,3210.7,0.15571]
[1765480965479,0.79066664,3211.7,3210.9,2.5806]
[1765480965678,0.7953158,3211.6,3211.0,0.00467421]
[1765480965879,0.79066664,3211.5,3211.0,0.00467421]
[1765480966074,0.79066664,3211.4,3210.9,0.15906781]
[1765480966276,0.79066664,3211.3,3210.2,2.5806]
[1765480966481,0.79066664,3211.2,3210.2,2.5806]
[1765480966784,3.11892327,3211.1,3210.2,2.5806]
[1765480966983,0.79066664,3211.0,3210.2,2.5806]
[1765480967284,0.83811919,3210.9,3210.6,0.15571]
[1765480967487,0.83811919,3210.8,3210.6,0.15571]
[1765480967686,0.83811919,3210.7,3210.6,0.15571]
[1765480967883,0.84073425,3210.7,3210.6,0.15571]
[1765480968081,0.00261506,3210.7,3210.6,0.15571]
[1765480968282,0.84104791,3210.7,3210.3,0.00467421]
[1765480968483,0.83843285,3210.6,3210.3,0.00467421]
[1765480968684,3.16676856,3210.5,3210.3,0.00467421]
[1765480968880,0.83851193,3210.4,3209.5,2.5806]
[1765480969178,2.32825663,3210.5,3209.5,2.5806]
[1765480969179,0.83851193,3210.3,3209.5,2.5806]
[1765480969384,0.83851193,3210.2,3209.5,2.5806]
[1765480969686,0.83851193,3210.1,3209.6,0.15577]
[1765480969989,0.83811868,3210.0,3209.7,0.15576]
[1765480970191,0.00261506,3210.7,3209.6,0.0022935]
[1765480970393,0.83765827,3210.6,3209.6,0.0022935]
[1765480970689,0.83765827,3210.5,3210.0,0.15574]
[1765480970888,0.83765827,3210.4,3210.0,0.15574]
[1765480971083,0.83765827,3210.3,3210.2,2.94634]
[1765480971285,0.83728163,3210.6,3210.3,0.15573]
[1765480971486,0.00261506,3210.7,3210.3,0.15573]
[1765480971685,0.83725976,3210.6,3210.3,0.15573]
[1765480971886,0.00261506,3210.7,3210.3,0.15573]
[1765480972088,0.83725915,3210.6,3210.3,0.15573]
[1765480972284,0.83701296,3210.6,3210.3,0.15573]
[1765480972489,2.32825663,3210.5,3209.8,0.15575]
[1765480972695,2.32825663,3210.5,3209.9,0.15575]
[1765480973394,3.99582481,3210.5,3209.9,0.15575]
[1765480973593,0.94916078,3210.4,3209.9,0.15575]
[1765480973789,2.61672896,3210.3,3209.9,0.15575]
[1765480973985,2.61672896,3210.2,3209.9,0.15575]
[1765480974297,0.94916078,3210.1,3209.9,0.15575]
[1765480974502,0.94916078,3210.0,3209.9,0.15575]
[1765480975602,0.94916078,3210.0,3209.6,0.0022935]
[1765480975603,6.94916078,3210.0,3209.6,0.0022935]
[1765480975893,2.61672896,3209.9,3209.5,0.00467421]
[1765480976098,0.94916078,3209.8,3209.2,0.15578]
[1765480976289,3.27741741,3209.7,3208.8,2.7906]
[1765480976486,0.94916078,3209.6,3208.8,2.7906]
[1765480976690,0.94916078,3209.5,3208.8,2.7906]
[1765480976889,0.94916078,3209.4,3208.8,2.79294942]
[1765480977086,0.00467421,3209.4,3209.2,0.15578]
[1765480977292,0.94726524,3209.3,3208.8,2.79762363]
[1765480977497,0.00467421,3209.4,3208.8,2.95342363]
[1765480977692,0.00467421,3209.4,3209.0,0.15579]
[1765480977886,0.00467421,3209.4,3208.8,2.79762363]
[1765480979193,0.00467421,3209.4,3209.3,9.76878]
[1765480979791,0.00467421,3209.4,3209.3,0.15578]
[1765480980695,0.00467421,3209.4,3208.8,2.79762363]
[1765480981495,0.00467421,3209.4,3209.3,0.15578]
[1765480983493,0.00467421,3209.4,3208.8,2.79762363]
[1765480983494,0.00261506,3210.7,3209.8,0.15576]
[1765480983992,2.32825663,3210.6,3209.8,0.15576]
[1765480984393,2.32825663,3210.6,3210.0,2.7906]
[1765480984594,2.33293084,3210.6,3210.0,2.94634]
[1765480986001,0.00467421,3210.6,3210.2,0.15573]
[1765480986200,0.00467421,3210.6,3210.0,2.7906]
[1765480986702,0.00467421,3210.6,3210.5,9.76872]
[1765480987095,0.00467421,3210.6,3210.5,0.15572]
[1765480989505,0.00467421,3210.6,3210.5,4.86502]
[1765480990302,0.00467421,3210.6,3210.5,9.76872]
[1765480990805,2.32825663,3211.8,3211.0,0.15569]
[1765480991707,0.00467421,3211.7,3211.2,2.7906]
[1765480991907,0.00467421,3211.7,3211.2,2.7946051]
[1765480992411,0.95529231,3211.7,3211.2,2.7946051]
[1765480993202,0.00467421,3211.7,3211.6,9.613]
[1765480993610,0.00467421,3211.7,3211.6,9.76867]
[1765480994003,0.00467421,3211.7,3211.6,0.15567]
[1765480994202,8.33293084,3211.7,3211.2,2.7946051]
[1765480994398,2.33293084,3211.7,3211.2,2.7946051]
[1765480994610,0.95310113,3211.6,3211.2,2.7946051]
[1765480994810,0.95310113,3211.5,3211.2,2.7946051]
[1765480995011,0.95310113,3211.6,3211.2,2.7946051]
[1765480996516,0.95310113,3211.6,3211.2,0.0040051]
[1765480997015,0.95310113,3211.6,3211.2,2.6203051]
[1765480997417,0.00467421,3211.7,3211.2,2.7759951]
[1765480997609,0.00467421,3211.7,3211.3,0.15568]
[1765480998916,0.00467421,3211.7,3211.2,2.6203051]
[1765480999414,0.00467421,3211.7,3211.6,9.16787]
[1765480999815,2.32825663,3211.7,3211.2,2.6203051]
[1765481000217,0.95234687,3211.6,3211.2,2.6203051]
[1765481001912,1.10801687,3211.6,3210.6,2.7906]
[1765481002109,2.32825663,3211.3,3210.6,2.7906]
[1765481002312,0.95234687,3211.2,3210.6,2.7906]
[1765481002613,2.32825663,3210.9,3210.6,2.7906]
[1765481003008,2.32825663,3210.9,3210.6,2.7935868]
[1765481003412,0.00464916,3211.7,3211.2,2.6164]
[1765481003711,0.9593195,3211.6,3211.2,2.6164]
[1765481004110,0.00464916,3211.7,3211.2,2.6164]
[1765481004111,0.96396866,3211.7,3211.2,2.6164]
[1765481005622,2.32825663,3211.4,3211.2,2.6164]
[1765481008118,0.00464916,3211.7,3211.6,4.4717]
[1765481008320,0.96454728,3211.7,3211.6,4.4717]
[1765481008716,0.96454728,3211.7,3211.4,0.15568]
[1765481009619,0.00464916,3211.7,3211.4,0.15568]
[1765481010416,0.00464916,3211.7,3211.2,2.6164]
[1765481010417,0.00464916,3211.7,3211.6,9.0997]
[1765481010622,0.00464916,3211.7,3211.6,9.25537]
[1765481011724,0.00464916,3211.7,3211.2,2.6164]
[1765481012621,0.00464916,3211.7,3211.6,9.0997]
[1765481012821,0.00464916,3211.7,3211.6,9.25537]
[1765481014031,0.95989812,3212.2,3212.1,9.0997]
[1765481014230,0.95989812,3212.2,3211.8,2.6164]
[1765481014231,0.95989812,3212.7,3212.6,9.0997]
[1765481014835,3.99582481,3213.3,3212.4,2.6164]
[1765481014836,0.95989812,3213.2,3213.0,2.6164]
[1765481015135,0.95989812,3213.1,3213.0,2.43901701]
[1765481016634,0.95989812,3213.1,3213.0,11.53871701]
[1765481016932,0.00221394,3213.2,3213.1,9.0997]
[1765481020436,0.00221394,3213.2,3213.1,9.2553]
[1765481023831,2.33047057,3213.2,3213.0,2.43901701]
[1765481026241,0.95804757,3213.1,3213.0,2.43901701]
[1765481026435,0.95804757,3213.1,3212.8,0.00467421]
[1765481026634,2.58904833,3213.0,3212.8,0.00467421]
[1765481027534,0.95816583,3212.9,3212.8,0.00734528]
[1765481029235,0.95816583,3212.9,3212.4,2.6164]
[1765481029435,0.15562,3212.5,3211.8,2.6164]
[1765481029652,2.58904833,3212.2,3211.8,2.6164]
[1765481030137,0.95842239,3212.1,3211.8,2.6164]
[1765481030338,0.95842239,3212.1,3211.8,2.61870568]
[1765481031750,0.95842239,3212.1,3212.0,8.25]
[1765481031948,0.95842239,3212.6,3212.5,2.5039]
[1765481033446,7.11404239,3212.6,3211.8,2.61870568]
[1765481033647,0.95842239,3212.5,3211.8,2.61870568]
[1765481033842,0.95842239,3212.4,3212.3,4.1395]
[1765481034049,0.95842239,3212.4,3211.8,2.61870568]
[1765481034246,0.95842239,3212.3,3211.8,2.61870568]
[1765481034443,2.58904833,3212.4,3211.8,2.61870568]
[1765481034747,0.95842239,3212.3,3211.8,2.61870568]
[1765481036854,0.95842239,3212.3,3212.2,4.1395]
[1765481037356,0.95842239,3212.3,3211.8,2.61870568]
[1765481037655,0.95842239,3212.3,3212.2,8.25]
[1765481038153,0.95842239,3212.3,3211.8,2.61870568]
[1765481039351,0.95842239,3212.3,3212.2,8.0613]
[1765481039559,0.95842239,3212.8,3212.5,2.4076]
[1765481040054,0.95842239,3212.8,3212.7,8.1409]
[1765481040856,3.54747072,3212.8,3212.5,2.4076]
[1765481041056,2.58904833,3212.8,3212.5,2.4076]
[1765481041459,0.96171507,3212.7,3211.8,2.61870568]
[1765481041854,1.4999,3211.9,3211.8,2.61870568]
[1765481042058,1.4999,3211.9,3211.8,6.83780568]
[1765481042561,0.15566,3211.9,3211.0,6.8355]
[1765481042760,5.50484833,3211.1,3211.0,2.6164]
[1765481042951,6.46696496,3211.1,3210.5,2.4076]
[1765481043151,5.589,3211.5,3210.0,2.4076]
[1765481043152,10.53124833,3210.6,3210.0,2.4076]
[1765481043458,2.58904833,3210.6,3210.5,8.1409]
[1765481043656,2.59134999,3210.6,3210.5,8.14467458]
[1765481043857,0.00230166,3210.6,3210.5,8.14467458]
[1765481044063,0.00467421,3210.9,3210.8,8.1409]
[1765481044766,0.96107082,3212.0,3210.8,8.1409]
[1765481045067,0.9633456,3212.0,3210.8,8.1409]
[1765481045768,0.00467421,3211.7,3211.2,2.4076]